fUSD/lending_fUSD_20241206
["ID","MTS","AMOUNT","RATE_DAILY","PERIOD"]
[344425290,1733453009586,-360.0,6.998e-05,3]
[344425291,1733453009610,-360.0,6.998e-05,3]
[344425292,1733453009635,-360.0,6.998e-05,3]
[344425293,1733453009659,-360.0,6.998e-05,3]
[344425294,1733453009681,-360.0,6.998e-05,3]
[344425295,1733453009704,-360.0,6.998e-05,2]
[344425296,1733453009727,-360.0,6.998e-05,2]
[344425297,1733453009751,-360.0,6.998e-05,2]
[344425298,1733453009773,-360.0,6.998e-05,2]
[344425299,1733453009796,-1502.17401938,6.999e-05,2]
[344425300,1733453009817,-500.0,6.999e-05,2]
[344425301,1733453009839,-500.0,6.999e-05,2]
[344425302,1733453009862,-183.23857389,6.999e-05,2]
[344425303,1733453009884,-515.84501361,6.999e-05,2]
[344425304,1733453009907,-500.0,6.999e-05,2]
[344425305,1733453009929,-500.0,6.999e-05,2]
[344425306,1733453009952,-500.0,6.999e-05,2]
[344425307,1733453009974,-500.0,6.999e-05,2]
[344425308,1733453009995,-1138.9446639,6.999e-05,2]
[344425309,1733453010017,-40999.75701504,6.999e-05,2]
[344425310,1733453010039,-810.0,7e-05,2]
[344425311,1733453010061,-211.588,7e-05,2]
[344425312,1733453010083,-2004.0,7e-05,2]
[344425313,1733453010105,-631.0,7e-05,2]
[344425314,1733453010126,-563.0,7e-05,2]
[344425315,1733453010147,-1893.0,7e-05,2]
[344425316,1733453010170,-1293.425,7e-05,2]
[344425317,1733453010192,-816.0,7e-05,2]
[344425318,1733453010213,-3761.0,7e-05,2]
[344425319,1733453010235,-670.623,7e-05,2]
[344425320,1733453010257,-973.0,7e-05,2]
[344425321,1733453010279,-3569.847,7e-05,2]
[344425322,1733453010303,-5964.0,7e-05,2]
[344425323,1733453010327,-1166.0,7e-05,2]
[344425324,1733453010352,-150.0,7e-05,2]
[344425325,1733453010375,-13715.0,7e-05,2]
[344425326,1733453010396,-1098.0,7e-05,2]
[344425327,1733453010420,-20000.0,7e-05,2]
[344425328,1733453010448,-33700.32927218,7e-05,2]
[344425330,1733453227549,-200.0,6.013e-05,2]
[344425331,1733453227570,-1097.08280868,6.333e-05,2]
[344425332,1733453234151,-389.52719132,6.333e-05,2]
[344425333,1733453234173,-644.42688219,6.365e-05,2]
[344425344,1733453432681,-1705.45,6.055e-05,2]
[344425345,1733453432691,-250.0,6.13e-05,2]
[344425346,1733453432701,-560.26,6.158e-05,2]
[344425347,1733453432710,-1073.43762476,6.365e-05,2]
[344425348,1733453432723,-915.95549305,6.365e-05,2]
[344425349,1733453432732,-84.44250695,6.727e-05,2]
[344425350,1733453432744,-65.55749305,6.727e-05,2]
[344425351,1733453432753,-1500.0,6.738e-05,2]
[344425352,1733453432763,-1500.0,6.797e-05,2]
[344425353,1733453432773,-150.0,6.838e-05,2]
[344425354,1733453432782,-268.1539385,6.86e-05,2]
[344425355,1733453432791,-222.0451,6.9e-05,2]
[344425356,1733453432801,-1000.0,6.9e-05,2]
[344425357,1733453432810,-2500.0,6.9e-05,2]
[344425358,1733453432820,-5100.0,6.9e-05,2]
[344425359,1733453432829,-3819.18209659,6.9e-05,3]
[344425360,1733453432841,-1347.43682365,6.9e-05,3]
[344425361,1733453432850,-1500.0,6.926e-05,2]
[344425362,1733453432859,-560.26,6.928e-05,2]
[344425363,1733453432869,-382.54408276,6.973e-05,2]
[344425364,1733453432879,-500.0,6.973e-05,2]
[344425365,1733453432888,-511.13889382,6.973e-05,2]
[344425366,1733453432897,-500.0,6.973e-05,2]
[344425367,1733453432907,-150.0,6.986e-05,2]
[344425368,1733453432916,-360.0,6.998e-05,2]
[344425370,1733453432926,-360.0,6.998e-05,2]
[344425372,1733453432936,-360.0,6.998e-05,2]
[344425374,1733453432945,-360.0,6.998e-05,2]
[344425376,1733453432954,-360.0,6.998e-05,2]
[344425378,1733453432963,-360.0,6.998e-05,3]
[344425380,1733453432972,-360.0,6.998e-05,3]
[344425381,1733453432981,-360.0,6.998e-05,3]
[344425383,1733453432991,-360.0,6.998e-05,3]
[344425385,1733453433000,-1000.0,6.999e-05,2]
[344425387,1733453433010,-150.0,6.999e-05,2]
[344425389,1733453433020,-737.0,7e-05,2]
[344425392,1733453433029,-1262.0,7e-05,2]
[344425394,1733453433039,-567.0,7e-05,2]
[344425395,1733453433049,-1098.0,7e-05,2]
[344425397,1733453433059,-2004.0,7e-05,2]
[344425399,1733453433068,-631.0,7e-05,2]
[344425401,1733453433078,-150.0,7e-05,2]
[344425404,1733453433087,-1893.0,7e-05,2]
[344425406,1733453433097,-563.0,7e-05,2]
[344425407,1733453433107,-1252.0,7e-05,2]
[344425408,1733453433116,-3761.0,7e-05,2]
[344425409,1733453433125,-816.0,7e-05,2]
[344425410,1733453433135,-535.0,7e-05,2]
[344425411,1733453433145,-3529.0,7e-05,2]
[344425412,1733453433155,-973.0,7e-05,2]
[344425413,1733453433164,-13715.0,7e-05,2]
[344425414,1733453433174,-5964.0,7e-05,2]
[344425415,1733453433184,-150.0,7e-05,2]
[344425416,1733453433194,-1166.0,7e-05,2]
[344425417,1733453433204,-20000.0,7e-05,2]
[344425418,1733453433213,-34659.20376538,7e-05,2]
[344425419,1733453433225,-488.72091848,7e-05,2]
[344425420,1733453433237,-3161.92973588,7e-05,2]
[344425421,1733453434351,-588.33327607,7e-05,2]
[344425422,1733453434363,-621.66059229,7e-05,2]
[344425423,1733453434374,-1103.55713475,7e-05,2]
[344425428,1733453438515,-657.0,7e-05,2]
[344425430,1733453438528,-227.0,7e-05,2]
[344425432,1733453438545,-166.0,7e-05,2]
[344425434,1733453438563,-1951.08750173,7e-05,2]
[344425436,1733453438856,-26143.49230271,7e-05,2]
[344425437,1733453438873,-1854.75846343,7e-05,2]
[344425438,1733453438889,-2696.21184503,7e-05,2]
[344425441,1733453441045,-56966407.32425635,7e-05,2]
[344425442,1733453441055,-4005.3117,7e-05,2]
[344425443,1733453441064,-6905.9464921,7e-05,2]
[344425444,1733453441073,-9000.0,7e-05,2]
[344425445,1733453441082,-5606.21362617,7e-05,2]
[344425446,1733453441091,-52242703.31275038,7e-05,2]
[344425447,1733453441993,-1261.04503495,6.013e-05,2]
[344425448,1733453442005,-1787.55805162,6.013e-05,2]
[344425449,1733453442083,-621.51461131,6.013e-05,2]
[344425450,1733453442094,-264.56464759,6.013e-05,2]
[344425451,1733453442105,-591.83551183,6.013e-05,2]
[344425452,1733453442116,-3976.25335329,6.013e-05,2]
[344425453,1733453442128,-850.16226948,6.013e-05,2]
[344425454,1733453442139,-722.19529931,6.013e-05,2]
[344425455,1733453442190,-13824.87122062,6.013e-05,2]
[344425456,1733453442201,-2209654.23141824,7e-05,2]
[344425457,1733453442214,-547.64999999,7e-05,2]
[344425458,1733453442225,-955.45495144,7e-05,2]
[344425459,1733453442236,-4887.55,7e-05,2]
[344425460,1733453442248,-1383.89329523,7e-05,2]
[344425461,1733453442666,-352743.64616104,7e-05,2]
[344425471,1733453443630,-591.0,7e-05,2]
[344425472,1733453443640,-154.047,7e-05,2]
[344425473,1733453443650,-6110.85367227,7e-05,2]
[344425474,1733453443662,-95648.70633293,7e-05,2]
[344425475,1733453443673,-5192.68946011,7e-05,2]
[344425476,1733453443684,-189858.72258674,7e-05,2]
[344425477,1733453443695,-532.35328105,7e-05,2]
[344425478,1733453443708,-634.8506277,7e-05,2]
[344425479,1733453443718,-1060.0051873,7e-05,2]
[344425480,1733453443730,-1426.56492949,7e-05,2]
[344425481,1733453443951,-726.20089367,7e-05,2]
[344425482,1733453443986,-5242.74940921,7e-05,2]
[344425485,1733453444245,-575.06944788,7e-05,2]
[344425486,1733453444257,-928.53060683,7e-05,2]
[344425487,1733453444269,-21533.27470492,7e-05,2]
[344425488,1733453444281,-10377.31968114,7e-05,2]
[344425489,1733453444292,-510.97792562,7e-05,2]
[344425490,1733453444305,-2693.56481546,7e-05,2]
[344425491,1733453444316,-6971.48406836,7e-05,2]
[344425493,1733453446517,-2947.40614564,7e-05,2]
[344425494,1733453446528,-500.0,7e-05,2]
[344425495,1733453446540,-1162320.25560361,7e-05,2]
[344425498,1733453447872,-1.33e-06,7e-05,2]
[344425499,1733453447884,-7031.65436117,7e-05,2]
[344425500,1733453447907,-4783.54127903,7e-05,2]
[344425501,1733453447918,-39516.72389401,7e-05,2]
[344425502,1733453447930,-764.50002692,7e-05,2]
[344425503,1733453447941,-1440.22934716,7e-05,2]
[344425504,1733453448112,-1865.90015416,7e-05,2]
[344425505,1733453448164,-5926.27291896,7e-05,2]
[344425506,1733453448175,-8987.6809423,7e-05,2]
[344425507,1733453448187,-602.0,7e-05,2]
[344425508,1733453448198,-463.49596685,7e-05,2]
[344425509,1733453448211,-324.95834368,7e-05,2]
[344425510,1733453448222,-1303.17693193,7e-05,2]
[344425511,1733453448233,-383.27927126,7e-05,2]
[344425512,1733453448244,-2049.27708235,7e-05,2]
[344425513,1733453448255,-488.1100308,7e-05,2]
[344425514,1733453448266,-10231.58504946,7e-05,2]
[344425515,1733453448430,-1098.0,7e-05,2]
[344425516,1733453448440,-7568.71524907,7e-05,2]
[344425517,1733453448452,-2238.27476078,7e-05,2]
[344425518,1733453448468,-1644.15644672,7e-05,2]
[344425519,1733453448479,-479.90852005,7e-05,2]
[344425528,1733453736630,150.0,4.977e-05,2]
[344425530,1733453826544,-242.8926391,5.047e-05,2]
[344425531,1733453826567,-150.0,5.182e-05,2]
[344425532,1733453826591,-150.0,5.201e-05,2]
[344425533,1733453826613,-150.0,5.243e-05,2]
[344425534,1733453826636,-325.23,5.596e-05,2]
[344425535,1733453826657,-150.0,5.629e-05,2]
[344425536,1733453826682,-300.0,5.694e-05,2]
[344425537,1733453826703,-1758.54,5.696e-05,2]
[344425538,1733453826725,-1232.69,5.723e-05,2]
[344425539,1733453826749,-169.09,5.758e-05,2]
[344425540,1733453826777,-8078.66,5.758e-05,2]
[344425541,1733453826801,-364.12,5.775e-05,2]
[344425542,1733453826825,-489.39,5.802e-05,2]
[344425543,1733453826848,-150.0,5.86e-05,2]
[344425544,1733453826870,-250.0,5.925e-05,2]
[344425545,1733453827193,-300.0,6e-05,2]
[344425546,1733453827217,-150.0,6.012e-05,2]
[344425547,1733453827239,-3437.38,6.013e-05,2]
[344425548,1733453827261,-1852.42,6.013e-05,2]
[344425549,1733453827282,-2000.0,6.013e-05,2]
[344425550,1733453827304,-1597.84,6.013e-05,2]
[344425551,1733453827325,-200.0,6.013e-05,2]
[344425552,1733453827347,-4707.74,6.013e-05,2]
[344425553,1733453827368,-150.0,6.029e-05,2]
[344425554,1733453827390,-150.0,6.065e-05,2]
[344425555,1733453827411,-150.0,6.073e-05,2]
[344425556,1733453827434,-150.0,6.08e-05,2]
[344425557,1733453827457,-600.0,6.1e-05,2]
[344425558,1733453827480,-150.0,6.13e-05,2]
[344425559,1733453827503,-150.0,6.154e-05,2]
[344425560,1733453827526,-150.0,6.157e-05,2]
[344425561,1733453827549,-166.88,6.193e-05,2]
[344425562,1733453827575,-1000.0,6.2e-05,2]
[344425563,1733453827601,-1300.0,6.3e-05,2]
[344425564,1733453827623,-150.0,6.363e-05,2]
[344425565,1733453827647,-150.0,6.365e-05,2]
[344425566,1733453827670,-150.0,6.371e-05,2]
[344425567,1733453827694,-1700.0,6.4e-05,2]
[344425568,1733453827717,-150.0,6.44e-05,2]
[344425569,1733453827739,-150.0,6.454e-05,2]
[344425570,1733453827765,-300.0,6.5e-05,2]
[344425571,1733453827787,-150.0,6.516e-05,2]
[344425572,1733453827810,-150.0,6.523e-05,2]
[344425573,1733453827832,-150.0,6.541e-05,2]
[344425574,1733453827855,-150.0,6.564e-05,2]
[344425575,1733453827877,-150.0,6.589e-05,2]
[344425576,1733453827899,-324.85,6.594e-05,2]
[344425577,1733453827922,-300.0,6.6e-05,2]
[344425578,1733453827943,-255.0,6.613e-05,2]
[344425579,1733453827967,-150.0,6.649e-05,2]
[344425580,1733453827992,-300.0,6.7e-05,2]
[344425581,1733453828015,-150.0,6.733e-05,2]
[344425582,1733453828036,-150.0,6.771e-05,2]
[344425583,1733453828060,-150.0,6.779e-05,2]
[344425584,1733453828083,-300.0,6.8e-05,2]
[344425585,1733453828108,-150.0,6.811e-05,2]
[344425586,1733453828131,-150.0,6.811e-05,2]
[344425587,1733453828154,-150.0,6.847e-05,2]
[344425588,1733453828176,-150.0,6.858e-05,2]
[344425589,1733453828198,-1063.6672646,6.86e-05,2]
[344425590,1733453828219,-1010.2831132,6.86e-05,2]
[344425591,1733453828241,-402.2309077,6.86e-05,2]
[344425592,1733453828267,-150.0,6.885e-05,2]
[344425593,1733453828288,-150.0,6.89e-05,2]
[344425594,1733453828310,-1000.0,6.9e-05,2]
[344425595,1733453828332,-2500.0,6.9e-05,2]
[344425596,1733453828355,-500.0,6.9e-05,2]
[344425597,1733453828375,-4849.0115492,6.9e-05,2]
[344425598,1733453828398,-771.0,6.9e-05,2]
[344425599,1733453828420,-408.0296,6.9e-05,2]
[344425600,1733453828444,-222.0451,6.9e-05,2]
[344425601,1733453828468,-150.0,6.912e-05,2]
[344425602,1733453828489,-914.02410194,6.93e-05,2]
[344425603,1733453828517,-150.0,6.958e-05,2]
[344425604,1733453828538,-1676.0,6.959e-05,2]
[344425605,1733453828559,-200.0,6.965e-05,2]
[344425606,1733453828580,-200.0,6.965e-05,2]
[344425607,1733453828604,-284.31372478,6.965e-05,2]
[344425608,1733453828627,-500.0,6.973e-05,2]
[344425609,1733453828648,-354.26204659,6.973e-05,2]
[344425610,1733453828669,-500.0,6.973e-05,2]
[344425611,1733453828691,-501.66780319,6.973e-05,2]
[344425612,1733453828713,-150.0,6.975e-05,2]
[344425613,1733453828738,-430.040012,6.988e-05,2]
[344425614,1733453828770,-326.7706536,6.993e-05,2]
[344425615,1733453828794,-360.0,6.998e-05,2]
[344425616,1733453828816,-360.0,6.998e-05,2]
[344425617,1733453828839,-360.0,6.998e-05,2]
[344425618,1733453828863,-360.0,6.998e-05,2]
[344425619,1733453828886,-360.0,6.998e-05,2]
[344425620,1733453828911,-360.0,6.998e-05,3]
[344425621,1733453828936,-360.0,6.998e-05,3]
[344425622,1733453828959,-360.0,6.998e-05,3]
[344425623,1733453828982,-360.0,6.998e-05,3]
[344425624,1733453829007,-360.0,6.998e-05,3]
[344425625,1733453829029,-2006.72118005,6.999e-05,2]
[344425626,1733453829052,-1138.9446639,6.999e-05,2]
[344425627,1733453829075,-433.24347524,6.999e-05,2]
[344425628,1733453829097,-574.73163444,6.999e-05,2]
[344425629,1733453829119,-185.01695104,6.999e-05,2]
[344425630,1733453829143,-500.0,6.999e-05,2]
[344425631,1733453829165,-515.84501361,6.999e-05,2]
[344425632,1733453829190,-500.0,6.999e-05,2]
[344425633,1733453829212,-500.0,6.999e-05,2]
[344425634,1733453829236,-500.0,6.999e-05,2]
[344425635,1733453829262,-500.0,6.999e-05,2]
[344425636,1733453829285,-500.0,6.999e-05,2]
[344425637,1733453829308,-644.88576589,6.999e-05,2]
[344425638,1733453829332,-150.0,6.999e-05,2]
[344425639,1733453829354,-536.0,7e-05,2]
[344425640,1733453829376,-157.0,7e-05,2]
[344425641,1733453829400,-150.0,7e-05,2]
[344425642,1733453829423,-251.0,7e-05,2]
[344425643,1733453829446,-150.0,7e-05,2]
[344425644,1733453829471,-150.465,7e-05,2]
[344425645,1733453829494,-153.582,7e-05,2]
[344425646,1733453829517,-1166.0,7e-05,2]
[344425647,1733453829539,-13715.0,7e-05,2]
[344425648,1733453829563,-1098.0,7e-05,2]
[344425649,1733453829591,-20000.0,7e-05,2]
[344425650,1733453829622,-53314652.89883859,7e-05,2]
[344425651,1733453829649,-162.66737951,7e-05,2]
[344425652,1733453829675,-490.01,7e-05,2]
[344425653,1733453829696,-4613.7051,7e-05,2]
[344425654,1733453829718,-8609.79,7e-05,2]
[344425655,1733453829742,-4000.0,7e-05,3]
[344425656,1733453829765,-496.72,7e-05,2]
[344425657,1733453829787,-1000.0,7e-05,2]
[344425658,1733453829808,-150.0,7e-05,2]
[344425659,1733453829830,-8693.32236764,7e-05,2]
[344425660,1733453829851,-4005.3117,7e-05,2]
[344425661,1733453829872,-250000.0,7e-05,2]
[344425662,1733453829897,-78005.70386273,7e-05,2]
[344425663,1733453829919,-4396.14052924,7e-05,2]
[344425664,1733453830415,150.0,6.784e-05,2]
[344425665,1733453830491,150.0,6.471e-05,2]
[344425666,1733453830535,150.0,6.335e-05,2]
[344425667,1733453830610,150.0,6.923e-05,2]
[344425668,1733453831226,150.0,6.708e-05,2]
[344425669,1733453832044,2500.0,6.9e-05,2]
[344425670,1733453832248,324.93260643,6.999e-05,2]
[344425671,1733453832285,273.94,6.013e-05,2]
[344425672,1733453832623,500.0,6.973e-05,2]
[344425673,1733453834056,500.0,6.973e-05,2]
[344425674,1733453841798,243.69945482,6.999e-05,2]
[344425675,1733453843248,500.0,6.973e-05,2]
[344425676,1733453844603,360.0,6.998e-05,3]
[344425677,1733453845432,360.0,6.998e-05,3]
[344425678,1733453852788,500.9,7e-05,2]
[344425681,1733453857882,1500.0,6.013e-05,2]
[344425682,1733453870447,506.08,7e-05,2]
[344425683,1733453880046,1539.62518972,7e-05,2]
[344425684,1733453887702,505.34,7e-05,2]
[344425685,1733453888250,1082.98019843,6.86e-05,2]
[344425686,1733453892348,182.77459112,6.999e-05,2]
[344425687,1733453904340,1050.64487375,6.859e-05,2]
[344425688,1733453906933,1564.05,6.337e-05,2]
[344425689,1733453915026,498.82,7e-05,2]
[344425690,1733453917920,286.9219,6.9e-05,2]
[344425697,1733453926188,1440.8911538,6.995e-05,2]
[344425698,1733453930171,500.0,6.999e-05,2]
[344425699,1733453930204,500.0,6.999e-05,2]
[344425700,1733453930241,500.0,6.999e-05,2]
[344425701,1733453930273,500.0,6.999e-05,2]
[344425702,1733453930305,597.20153005,6.999e-05,2]
[344425703,1733453930357,500.0,6.999e-05,2]
[344425704,1733453930390,500.0,6.999e-05,2]
[344425705,1733453930421,503.74393518,6.999e-05,2]
[344425706,1733453930452,500.0,6.999e-05,2]
[344425707,1733453930490,313.67931665,6.999e-05,2]
[344425708,1733453930527,500.0,6.999e-05,2]
[344425709,1733453930562,176.32266225,6.999e-05,2]
[344425710,1733453930594,422.58607824,6.999e-05,2]
[344425711,1733453930634,500.0,6.999e-05,2]
[344425712,1733453930674,500.0,6.999e-05,2]
[344425713,1733453930711,500.0,6.999e-05,2]
[344425714,1733453930743,500.0,6.999e-05,2]
[344425715,1733453930785,604.28334275,6.999e-05,2]
[344425716,1733453930832,500.0,6.999e-05,2]
[344425717,1733453931166,500.0,6.999e-05,2]
[344425718,1733453931211,500.0,6.999e-05,2]
[344425719,1733453931245,500.0,6.999e-05,2]
[344425720,1733453931285,500.0,6.999e-05,2]
[344425721,1733453931330,500.0,6.999e-05,2]
[344425722,1733453931381,500.0,6.999e-05,2]
[344425723,1733453931424,500.0,6.999e-05,2]
[344425724,1733453931482,500.0,6.999e-05,2]
[344425725,1733453931526,500.0,6.999e-05,2]
[344425726,1733453931576,500.0,6.999e-05,2]
[344425727,1733453931615,500.0,6.999e-05,2]
[344425729,1733453934676,383.85,6.013e-05,2]
[344425730,1733453934768,383.85,6.764e-05,2]
[344425731,1733453936326,2500.0,6.9e-05,2]
[344425732,1733453941585,313.17820225,6.999e-05,2]
[344425733,1733453950297,3345.45,6.061e-05,2]
[344425734,1733453952811,234.88365169,6.999e-05,2]
[344425735,1733453959024,304.7385062,6.86e-05,2]
[344425736,1733453962424,150.01,6.999e-05,2]
[344425737,1733453962926,176.16273877,6.999e-05,2]
[344425738,1733453963456,150.0,6.686e-05,2]
[344425739,1733453963516,150.0,6.639e-05,2]
[344425740,1733453971962,150.01,6.999e-05,2]
[344425742,1733453980956,3982.2052061,6.995e-05,2]
[344425743,1733453983977,150.01,6.999e-05,2]
[344425744,1733453984568,1000.0,7e-05,2]
[344425745,1733454000459,1071.08487094,6.86e-05,2]
[344425746,1733454001939,300.0,6.999e-05,2]
[344425747,1733454003546,150.0,6.999e-05,2]
[344425748,1733454003647,152.3692531,6.86e-05,2]
[344425749,1733454003779,150.0,6.999e-05,2]
[344425750,1733454003999,150.0,6.999e-05,2]
[344425751,1733454004214,150.0,6.999e-05,2]
[344425752,1733454004368,605.7081,6.965e-05,2]
[344425753,1733454004413,150.0,6.999e-05,2]
[344425754,1733454004637,150.0,6.999e-05,2]
[344425755,1733454004857,150.0,6.999e-05,2]
[344425756,1733454005075,150.0,6.999e-05,2]
[344425757,1733454005309,150.0,6.999e-05,2]
[344425758,1733454005811,150.0,6.999e-05,2]
[344425759,1733454005893,150.0,6.999e-05,2]
[344425760,1733454005963,150.0,6.999e-05,2]
[344425761,1733454006122,150.0,6.999e-05,2]
[344425762,1733454006322,150.0,6.999e-05,2]
[344425763,1733454006548,150.0,6.999e-05,2]
[344425764,1733454006809,150.0,6.999e-05,2]
[344425765,1733454007306,250.0,6.325e-05,2]
[344425766,1733454013115,150.0,6.999e-05,2]
[344425767,1733454013228,150.0,6.999e-05,2]
[344425768,1733454013393,150.0,6.999e-05,2]
[344425769,1733454013504,150.0,6.999e-05,2]
[344425770,1733454013598,150.0,6.999e-05,2]
[344425771,1733454013679,171.51157241,6.999e-05,2]
[344425772,1733454013898,500.0,6.325e-05,2]
[344425773,1733454015887,150.0,7e-05,2]
[344425774,1733454016350,5964.0,7e-05,2]
[344425775,1733454016934,150.0,7e-05,2]
[344425776,1733454020173,567.0,7e-05,2]
[344425777,1733454024760,501.33,7e-05,2]
[344425778,1733454025075,150.0,7e-05,2]
[344425779,1733454029776,1262.0,7e-05,2]
[344425780,1733454034351,741.455,7e-05,2]
[344425781,1733454038323,1402.73922355,6.86e-05,2]
[344425782,1733454039271,13715.0,7e-05,2]
[344425783,1733454041003,507.72,7e-05,2]
[344425784,1733454046423,1166.0,7e-05,2]
[344425785,1733454048792,211.588,7e-05,2]
[344425786,1733454055558,2004.0,7e-05,2]
[344425787,1733454057893,498.56,7e-05,2]
[344425788,1733454059312,150.0,7e-05,2]
[344425789,1733454061613,477.8961092,6.93e-05,2]
[344425790,1733454064242,631.0,7e-05,2]
[344425791,1733454064372,150.0,5.624e-05,2]
[344425792,1733454073137,1098.0,7e-05,2]
[344425793,1733454073365,252.94,6.373e-05,2]
[344425794,1733454079116,527.75,6.013e-05,2]
[344425795,1733454085783,508.44,7e-05,2]
[344425796,1733454086834,1893.0,7e-05,2]
[344425797,1733454091869,563.0,7e-05,2]
[344425798,1733454093644,152.3692531,6.86e-05,2]
[344425799,1733454096153,228.59,5.06e-05,2]
[344425800,1733454096404,228.59,5.566e-05,2]
[344425801,1733454096627,228.59,6.072e-05,2]
[344425802,1733454096880,228.59,6.578e-05,2]
[344425803,1733454102385,150.01,6.999e-05,2]
[344425804,1733454103414,498.65,7e-05,2]
[344425805,1733454116562,1293.425,7e-05,2]
[344425806,1733454120218,3761.0,7e-05,2]
[344425807,1733454127875,816.0,7e-05,2]
[344425808,1733454130402,494.75,7e-05,2]
[344425809,1733454143294,3569.847,7e-05,2]
[344425810,1733454146982,670.623,7e-05,2]
[344425811,1733454150509,506.61,7e-05,2]
[344425812,1733454152073,973.0,7e-05,2]
[344425813,1733454161327,150.01,6.999e-05,2]
[344425814,1733454168133,503.48,7e-05,2]
[344425815,1733454170251,233.58139919,6.999e-05,2]
[344425816,1733454182170,150.0,6.999e-05,2]
[344425817,1733454185032,498.73,7e-05,2]
[344425818,1733454194149,150.0,7e-05,2]
[344425819,1733454195709,150.0,7e-05,2]
[344425820,1733454204695,144834.99116083,7e-05,2]
[344425821,1733454208441,12094.84938688,7e-05,2]
[344425822,1733454210832,506.27,7e-05,2]
[344425823,1733454215258,23900.0,6.333e-05,2]
[344425824,1733454225482,1026.41679314,7e-05,2]
[344425825,1733454228527,547.38,6.061e-05,2]
[344425826,1733454236245,503.53,7e-05,2]
[344425828,1733454250476,494.37,6.013e-05,2]
[344425829,1733454253960,499.15,7e-05,2]
[344425830,1733454263293,250.0,6.327e-05,2]
[344425831,1733454282319,494.58,7e-05,2]
[344425832,1733454286838,3088.1416494,6.995e-05,2]
[344425834,1733454301298,300.0,6.999e-05,2]
[344425835,1733454306014,1118.7596268,6.995e-05,2]
[344425836,1733454308168,497.74,7e-05,2]
[344425837,1733454314501,13715.0,7e-05,2]
[344425838,1733454316257,2000.0,6.336e-05,2]
[344425839,1733454319351,1166.0,7e-05,2]
[344425840,1733454324274,492.52,7e-05,2]
[344425841,1733454335958,1098.0,7e-05,2]
[344425842,1733454350397,492.26,7e-05,2]
[344425843,1733454352626,200.0,6.013e-05,2]
[344425844,1733454361316,300.0,6.999e-05,2]
[344425845,1733454362104,150.0,6.999e-05,2]
[344425846,1733454378189,500.05,7e-05,2]
[344425847,1733454409511,494.5,7e-05,2]
[344425848,1733454419353,1000.0,7e-05,2]
[344425849,1733454426502,497.44,7e-05,2]
[344425850,1733454453370,495.84,7e-05,2]
[344425852,1733454477628,509.59,7e-05,2]
[344425853,1733454481222,300.0,6.385e-05,2]
[344425854,1733454503382,1500.0,6.392e-05,2]
[344425855,1733454503676,503.76,7e-05,2]
[344425856,1733454526836,504.6,7e-05,2]
[344425857,1733454541292,300.0,6.999e-05,2]
[344425858,1733454542269,150.0,6.999e-05,2]
[344425859,1733454550152,491.41,7e-05,2]
[344425861,1733454571114,684.2778621,7e-05,2]
[344425862,1733454574050,492.65,7e-05,2]
[344425864,1733454583537,433.53,6.428e-05,2]
[344425865,1733454600990,498.08,7e-05,2]
[344425866,1733454601930,300.0,6.999e-05,2]
[344425867,1733454614567,881.2203778,6.995e-05,2]